bitfinex-derivatives/quotes_SOLF0:USTF0_20250421
["timestamp","ask_amount","ask_price","bid_price","bid_amount"]
[1745216147733,28.41450371,141.12,141.09,13.22067006]
[1745216147930,28.41450371,141.12,141.09,6.13267006]
[1745216148136,0.05450371,141.12,141.11,6.08736103]
[1745216148434,0.05450371,141.12,141.11,13.17456103]
[1745216151139,0.05450371,141.12,141.11,7.0872]
[1745216151343,0.05450371,141.12,141.09,0.04530903]
[1745216151843,7.14120371,141.12,141.09,0.04530903]
[1745216152040,0.05450371,141.12,141.09,0.04530903]
[1745216152244,0.05450371,141.12,141.09,6.13267006]
[1745216152444,0.05450371,141.12,141.1,7.0873]
[1745216154047,0.05450371,141.12,141.09,13.22067006]
[1745216154844,0.05450371,141.12,141.1,7.0876]
[1745216158147,6.14186474,141.12,141.09,0.04530903]
[1745216158347,28.34,141.11,141.09,0.04530903]
[1745216158846,6.08736103,141.1,141.09,0.04530903]
[1745216159250,6.08736103,141.1,141.05,6.08736103]
[1745216159450,6.08736103,141.1,141.06,7.0894]
[1745216160148,36.44226103,141.11,141.05,6.08736103]
[1745216160453,0.04732255,141.09,141.07,0.04763821]
[1745216160757,0.04732255,141.09,141.08,7.0884]
[1745216162851,0.04732255,141.09,141.07,13.22399924]
[1745216163052,0.04732255,141.09,141.07,0.04763821]
[1745216164055,0.04732255,141.09,141.07,6.13499924]
[1745216164753,0.04732255,141.09,141.08,7.0887]
[1745216165649,0.04732255,141.09,141.07,13.22399924]
[1745216165855,0.04732255,141.09,141.07,0.04763821]
[1745216167055,0.04732255,141.09,141.07,7.13673821]
[1745216168160,0.04732255,141.09,141.07,0.04763821]
[1745216168858,0.04732255,141.09,141.07,7.13683821]
[1745216169154,0.04732255,141.09,141.07,0.04763821]
[1745216170059,6.08736103,141.08,141.07,0.04763821]
[1745216170857,0.04732255,141.09,141.07,0.04763821]
[1745216171159,0.04732255,141.09,141.07,6.13499924]
[1745216172258,0.04732255,141.09,141.07,0.04763821]
[1745216172456,0.04732255,141.09,141.07,6.13499924]
[1745216173261,0.04732255,141.09,141.08,7.0887]
[1745216175765,0.04732255,141.09,141.07,0.04763821]
[1745216176862,13.17606103,141.08,141.07,0.04763821]
[1745216178960,0.04732255,141.09,141.07,0.04763821]
[1745216179461,0.04732255,141.09,141.08,6.08736103]
[1745216179662,48.54386103,141.14,141.08,6.08736103]
[1745216180764,0.05252638,141.12,141.09,7.0881]
[1745216181164,0.05252638,141.12,141.09,7.13772921]
[1745216181462,0.05252638,141.12,141.1,7.0876]
[1745216181866,0.05252638,141.12,141.1,7.0877]
[1745216185565,0.05252638,141.12,141.11,7.0872]
[1745216187065,11.36,141.16,141.15,7.0852]
[1745216187569,54.37196103,141.17,141.12,6.08736103]
[1745216187771,41.47196103,141.17,141.13,7.086]
[1745216188071,28.3,141.17,141.12,6.08736103]
[1745216188270,0.04755544,141.16,141.14,7.13157985]
[1745216190574,0.04755544,141.16,141.14,0.04627985]
[1745216192274,0.04755544,141.16,141.14,7.13187985]
[1745216192474,0.04755544,141.16,141.14,0.04627985]
[1745216192676,7.13225544,141.16,141.14,0.04627985]
[1745216194176,7.0852,141.15,141.14,0.04627985]
[1745216195180,7.13245544,141.16,141.14,0.04627985]
[1745216195378,0.04755544,141.16,141.14,0.04627985]
[1745216196275,7.0852,141.15,141.14,0.04627985]
[1745216197278,7.0861,141.14,141.09,6.08736103]
[1745216197479,6.08736103,141.15,141.09,6.08736103]
[1745216197679,13.17276103,141.15,141.11,7.0867]
[1745216197874,13.17276103,141.15,141.09,6.08736103]
[1745216198176,38.48846103,141.17,141.11,6.08736103]
[1745216198376,0.05223427,141.13,141.12,7.0867]
[1745216198578,7.0849,141.16,141.12,7.0867]
[1745216198779,0.04806292,141.14,141.12,7.0867]
[1745216199072,0.04806292,141.14,141.11,6.13629652]
[1745216199578,0.04806292,141.14,141.13,7.0862]
[1745216205082,0.04806292,141.14,141.12,7.0865]
[1745216205483,0.04806292,141.14,141.11,6.13629652]
[1745216205878,0.04806292,141.14,141.12,7.0863]
[1745216206083,0.04806292,141.14,141.11,6.13629652]
[1745216206477,0.04806292,141.14,141.12,7.0863]
[1745216206683,0.04806292,141.14,141.11,6.13629652]
[1745216207684,0.04806292,141.14,141.11,0.04893549]
[1745216207985,34.32736103,141.13,141.06,34.38736103]
[1745216208179,7.087,141.12,141.08,7.0884]
[1745216208380,6.08736103,141.13,141.08,6.08736103]
[1745216208576,6.08736103,141.15,141.08,6.08736103]
[1745216208784,6.08736103,141.15,141.1,7.0876]
[1745216209086,0.04668484,141.13,141.1,6.13498742]
[1745216209287,0.04668484,141.13,141.11,7.0872]
[1745216209482,0.04668484,141.13,141.1,6.13498742]
[1745216209883,0.04668484,141.13,141.12,13.17406103]
[1745216214995,0.04668484,141.13,141.12,7.0867]
[1745216216300,0.04668484,141.13,141.12,13.17406103]
[1745216218500,12.45,141.17,141.12,6.08736103]
[1745216218802,12.45,141.17,141.15,6.08736103]
[1745216218999,12.45,141.17,141.16,7.0847]
[1745216219899,12.45,141.17,141.15,13.21741959]
[1745216220200,0.05040476,141.18,141.15,13.21741959]
[1745216221401,0.05040476,141.18,141.15,6.13241959]
[1745216222203,0.05040476,141.18,141.15,13.21731959]
[1745216222399,0.05040476,141.18,141.15,6.13241959]
[1745216223202,0.05040476,141.18,141.16,7.0845]
[1745216223401,0.05040476,141.18,141.15,6.13241959]
[1745216224305,0.05040476,141.18,141.16,7.0845]
[1745216224505,0.05040476,141.18,141.15,6.13241959]
[1745216224803,0.05040476,141.18,141.15,13.21751959]
[1745216225004,13.22146579,141.18,141.15,0.04505856]
[1745216228702,13.22146579,141.18,141.15,7.13015856]
[1745216229305,0.05040476,141.18,141.15,7.13015856]
[1745216229505,0.05040476,141.18,141.15,0.04505856]
[1745216229909,7.13450476,141.18,141.15,0.04505856]
[1745216231310,7.13450476,141.18,141.15,7.13025856]
[1745216233213,7.0843,141.17,141.15,0.04505856]
[1745216233505,28.2,141.17,141.15,0.04505856]
[1745216233912,28.2,141.17,141.15,7.13015856]
[1745216235407,6.08736103,141.16,141.08,28.24]
[1745216235612,6.08736103,141.16,141.1,6.08736103]
[1745216236010,11.74,141.15,141.1,6.08736103]
[1745216236411,18.8255,141.15,141.11,7.0871]
[1745216236617,0.04473109,141.14,141.11,7.13512837]
[1745216236815,7.0867,141.12,141.11,0.04802837]
[1745216237012,13.17406103,141.12,141.11,0.04802837]
[1745216237808,7.0877,141.1,141.05,28.2]
[1745216238116,8.03226103,141.12,141.06,6.08736103]
[1745216238415,7.0875,141.11,141.07,7.0888]
[1745216238606,8.03226103,141.12,141.06,6.08736103]
[1745216238807,0.04785023,141.1,141.06,6.08736103]
[1745216239012,0.04785023,141.1,141.08,6.137016]
[1745216239617,0.04785023,141.1,141.08,13.225316]
[1745216240514,0.04785023,141.1,141.08,0.04965497]
[1745216244918,7.13555023,141.1,141.08,0.04965497]
[1745216247421,7.0882,141.09,141.08,0.04965497]
[1745216247721,0.04785023,141.1,141.08,0.04965497]
[1745216247923,7.13585023,141.1,141.08,0.04965497]
[1745216248721,0.04785023,141.1,141.08,0.04965497]
[1745216249418,0.04785023,141.1,141.09,13.17556103]
[1745216250126,0.04785023,141.1,141.09,6.08736103]
[1745216251225,0.04785023,141.1,141.08,7.13815497]
[1745216251825,0.04785023,141.1,141.08,0.04965497]
[1745216255933,7.13605023,141.1,141.08,0.04965497]
[1745216257936,7.0882,141.09,141.08,0.04965497]
[1745216259436,0.04785023,141.1,141.08,6.137016]
[1745216260137,7.13555023,141.1,141.08,6.137016]
[1745216263639,7.13555023,141.1,141.08,0.04965497]
[1745216268650,28.18,141.09,141.02,1.9729]
[1745216268947,28.18,141.09,141.04,6.08736103]
[1745216269251,7.089,141.08,141.05,7.0899]
[1745216269451,38.12,141.09,141.06,6.08736103]
[1745216269952,38.16509302,141.09,141.06,13.17686103]
[1745216270547,45.25329302,141.09,141.06,7.0895]
[1745216270850,38.16509302,141.09,141.05,6.08736103]
[1745216272246,7.089,141.08,141.05,6.08736103]
[1745216272451,38.16509302,141.09,141.05,6.08736103]
[1745216272848,7.089,141.08,141.05,6.08736103]
[1745216273151,38.16509302,141.09,141.05,6.08736103]
[1745216273452,7.0888,141.08,141.05,6.08736103]
[1745216275054,7.0888,141.08,141.05,13.17746103]
[1745216275552,38.16509302,141.09,141.06,7.0896]
[1745216276854,38.16509302,141.09,141.07,13.17626103]
[1745216277554,38.16509302,141.09,141.08,7.0887]
[1745216278353,9.98509302,141.09,141.08,7.0887]
[1745216281559,28.18,141.12,141.11,7.0872]
[1745216281758,28.18,141.12,141.11,13.17456103]
[1745216282057,35.2655,141.15,141.11,13.17456103]
[1745216282659,0.04569648,141.14,141.12,0.05273398]
[1745216284960,7.13139648,141.14,141.12,0.05273398]
[1745216291365,0.04569648,141.14,141.12,7.13933398]
[1745216291662,0.04569648,141.14,141.12,0.05273398]
[1745216291860,0.04569648,141.14,141.12,7.13923398]
[1745216292056,0.04569648,141.14,141.12,0.05273398]
[1745216292966,7.13169648,141.14,141.12,0.05273398]
[1745216297472,0.04569648,141.14,141.12,0.05273398]
[1745216298572,7.13149648,141.14,141.12,0.05273398]
[1745216299273,0.04569648,141.14,141.12,0.05273398]
[1745216304077,0.04569648,141.14,141.12,7.13933398]
[1745216304281,7.13139648,141.14,141.12,0.05273398]
[1745216304571,7.13139648,141.14,141.12,7.13943398]
[1745216304776,7.13139648,141.14,141.13,6.08736103]
[1745216304777,0.04569648,141.14,141.13,6.08736103]
[1745216305076,30.0732,141.19,141.13,6.08736103]
[1745216305377,28.14,141.19,141.16,6.08736103]
[1745216305568,28.14,141.19,141.18,6.08736103]
[1745216305772,30.038,141.22,141.18,6.08736103]
[1745216305974,0.04601014,141.21,141.19,0.04544215]
[1745216307278,0.04601014,141.21,141.2,13.17006103]
[1745216309073,9.18,141.26,141.2,6.08736103]
[1745216309378,9.18,141.26,141.25,6.08736103]
[1745216310677,0.05389244,141.27,141.25,6.08736103]
[1745216311080,0.05389244,141.27,141.26,7.0797]
[1745216311475,30.0583,141.33,141.25,6.08736103]
[1745216311673,28.12,141.36,141.31,6.08736103]
[1745216311978,28.12,141.36,141.33,6.08736103]
[1745216312477,28.12,141.36,141.33,13.16346103]
[1745216312680,28.17054134,141.36,141.33,13.21597277]
[1745216312880,0.05054134,141.36,141.35,6.08736103]
[1745216316074,0.05054134,141.36,141.35,13.16256103]
[1745216316279,28.12,141.4,141.35,6.08736103]
[1745216316483,28.12,141.4,141.37,6.08736103]
[1745216316681,35.193,141.4,141.37,6.08736103]
[1745216317182,6.08736103,141.42,141.37,6.08736103]
[1745216317183,3.9266,141.45,141.37,6.08736103]
[1745216317479,0.0507708,141.4,141.39,6.08736103]
[1745216317680,35.1696,141.47,141.39,6.08736103]
[1745216317881,28.1,141.47,141.37,0.05280736]
[1745216318075,34.18736103,141.47,141.43,6.08736103]
[1745216318275,7.0701,141.46,141.36,28.1]
[1745216318583,34.18736103,141.47,141.42,6.08736103]
[1745216318882,0.05212993,141.46,141.43,0.05133847]
[1745216319581,6.13949096,141.46,141.43,0.05133847]
[1745216320177,0.05212993,141.46,141.43,0.05133847]
[1745216320377,6.13949096,141.46,141.43,0.05133847]
[1745216320673,0.05212993,141.46,141.36,28.1]
[1745216320878,28.1,141.47,141.36,28.1]
[1745216320879,6.08736103,141.43,141.38,6.08736103]
[1745216321078,7.0719,141.42,141.38,6.08736103]
[1745216321278,28.1,141.43,141.37,9.45600488]
[1745216321783,0.05052872,141.41,141.39,0.04902619]
[1745216322182,0.05052872,141.41,141.39,9.50503107]
[1745216322486,0.05052872,141.41,141.39,0.04902619]
[1745216325286,7.12282872,141.41,141.39,0.04902619]
[1745216325985,7.0727,141.4,141.39,0.04902619]
[1745216327489,7.0739,141.38,141.33,28.1]
[1745216327678,7.0739,141.38,141.33,7.0758]
[1745216328092,7.0742,141.37,141.33,7.0758]
[1745216328389,9.45600488,141.41,141.33,7.0758]
[1745216328583,0.04760688,141.36,141.34,0.05448624]
[1745216328780,7.075,141.36,141.34,0.05448624]
[1745216328984,7.12883658,141.36,141.34,0.05448624]
[1745216332798,7.0752,141.35,141.34,0.05448624]
[1745216335098,7.12863658,141.36,141.34,0.05448624]
[1745216335296,0.05383658,141.36,141.34,0.05448624]
[1745216335797,0.05383658,141.36,141.34,7.13008624]
[1745216339805,3.658e-05,141.36,141.35,7.0752]
[1745216340006,12.91,141.42,141.34,44.65049112]
[1745216340206,12.91,141.42,141.38,9.45600488]
[1745216340406,12.91,141.42,141.36,9.45600488]
[1745216340704,12.91,141.42,141.34,37.51600488]
[1745216340907,9.23,141.41,141.38,7.0733]
[1745216341102,0.04818846,141.39,141.38,7.0733]
[1745216342105,0.04818846,141.39,141.37,0.04527107]
[1745216342911,7.12168846,141.39,141.37,0.04527107]
[1745216343110,35.18168846,141.39,141.37,0.04527107]
[1745216344011,7.0737,141.38,141.37,0.04527107]
[1745216344410,28.10818846,141.39,141.37,0.04527107]
[1745216344611,35.18168846,141.39,141.37,0.04527107]
[1745216345206,28.10818846,141.39,141.37,0.04527107]
[1745216345705,7.0737,141.38,141.37,0.04527107]
[1745216346010,28.10818846,141.39,141.37,0.04527107]
[1745216346211,7.0737,141.38,141.37,0.04527107]
[1745216347315,7.0746,141.37,141.32,7.0762]
[1745216347515,7.0746,141.37,141.31,28.06]
[1745216347717,28.06,141.39,141.31,28.06]
[1745216348015,7.074,141.38,141.34,7.0756]
[1745216348214,28.06,141.39,141.31,28.06]
[1745216348416,0.05184354,141.37,141.35,0.04790358]
[1745216348909,7.12604354,141.37,141.35,0.04790358]
[1745216349115,0.05184354,141.37,141.35,0.04790358]
[1745216349517,0.05184354,141.37,141.35,7.12300358]
[1745216349717,0.05184354,141.37,141.35,0.04790358]
[1745216350320,0.05184354,141.37,141.36,7.0747]
[1745216352320,9.23,141.41,141.4,7.0727]
[1745216352716,28.06,141.45,141.39,9.45600488]
[1745216353619,0.05257081,141.43,141.42,7.0712]
[1745216354223,0.05257081,141.43,141.41,0.0506384]
[1745216355823,7.0717,141.42,141.41,0.0506384]
[1745216356023,0.05257081,141.43,141.41,0.0506384]
[1745216356425,7.12407081,141.43,141.41,0.0506384]
[1745216356723,0.05257081,141.43,141.41,0.0506384]
[1745216357324,7.12397081,141.43,141.41,0.0506384]
[1745216357721,0.05257081,141.43,141.41,0.0506384]
[1745216357919,7.0717,141.42,141.41,0.0506384]
[1745216358725,9.50857569,141.43,141.34,28.12]
[1745216358924,1.8938,141.42,141.34,28.12]
[1745216359127,28.12,141.41,141.37,7.0738]
[1745216359426,35.1923,141.41,141.37,7.0738]
[1745216359625,28.12,141.41,141.38,7.0736]
[1745216360025,28.17001413,141.41,141.38,7.12359994]
[1745216360721,35.24221413,141.41,141.38,0.04999994]
[1745216360926,28.17001413,141.41,141.38,0.04999994]
[1745216361327,7.0731,141.4,141.38,0.04999994]
[1745216362027,35.24231413,141.41,141.38,0.04999994]
[1745216362526,7.0727,141.4,141.38,0.04999994]
[1745216364029,7.0732,141.39,141.38,0.04999994]
[1745216364230,28.17001413,141.41,141.38,0.04999994]
[1745216364829,7.073,141.4,141.38,0.04999994]
[1745216365131,28.17001413,141.41,141.38,0.04999994]
[1745216365429,7.0727,141.4,141.38,0.04999994]
[1745216366132,35.24221413,141.41,141.38,0.04999994]
[1745216366525,28.17001413,141.41,141.38,0.04999994]
[1745216367422,7.0727,141.4,141.38,0.04999994]
[1745216367620,28.17001413,141.41,141.38,0.04999994]
[1745216367827,37.62601901,141.41,141.38,0.04999994]
[1745216368133,9.45600488,141.39,141.27,37.57600488]
[1745216368332,9.45600488,141.37,141.27,37.57600488]
[1745216368531,9.45600488,141.35,141.25,9.45600488]
[1745216368732,32.0025,141.34,141.25,37.57600488]
[1745216369035,7.0768,141.32,141.29,7.078]
[1745216369329,0.04658296,141.31,141.28,0.05137249]
[1745216370232,7.12388296,141.31,141.28,0.05137249]
[1745216370532,0.04658296,141.31,141.28,0.05137249]
[1745216370831,0.04658296,141.31,141.29,7.0779]
[1745216371732,0.04658296,141.31,141.3,7.0777]
[1745216372324,7.0748,141.36,141.32,7.0764]
[1745216372930,595.3143,141.37,141.33,7.076]
[1745216373234,588.24,141.37,141.33,7.076]
[1745216373630,0.05399158,141.36,141.34,0.04543225]
[1745216374234,0.05399158,141.36,141.34,7.12103225]
[1745216375136,7.12869158,141.36,141.34,0.04543225]
[1745216375535,0.05399158,141.36,141.34,0.04543225]
[1745216376836,7.0752,141.35,141.34,0.04543225]
[1745216377536,7.0769,141.32,141.29,28.12]
[1745216377737,7.0769,141.32,141.26,28.12]
[1745216378238,7.0769,141.32,141.28,7.0783]
[1745216378829,0.04674987,141.31,141.29,0.05317536]
[1745216379144,7.0777,141.3,141.29,0.05317536]
[1745216379335,9.50275475,141.31,141.2,37.59600488]
[1745216379539,9.45600488,141.31,141.2,37.59600488]
[1745216379832,7.0793,141.27,141.2,37.59600488]
[1745216380540,0.04783127,141.25,141.22,0.04922679]
[1745216381243,0.04783127,141.25,141.23,7.0809]
[1745216381639,0.04783127,141.25,141.22,0.04922679]
[1745216382336,0.04783127,141.25,141.22,7.13072679]
[1745216382743,0.04783127,141.25,141.22,0.04922679]
[1745216383042,7.12833127,141.25,141.22,0.04922679]
[1745216384340,7.0808,141.24,141.22,0.04922679]
[1745216384744,0.04783127,141.25,141.22,0.04922679]
[1745216384950,7.12813127,141.25,141.22,0.04922679]
[1745216385246,0.04783127,141.25,141.22,0.04922679]
[1745216385547,0.04783127,141.25,141.22,7.13082679]
[1745216386746,0.04783127,141.25,141.23,7.081]
[1745216387044,0.04783127,141.25,141.22,0.04922679]
[1745216387949,0.04783127,141.25,141.24,7.0807]
[1745216397761,24.6,141.27,141.26,7.0797]
[1745216402466,24.6,141.27,141.25,7.1270445]
[1745216402966,24.6,141.27,141.25,0.0470445]
[1745216404768,24.6,141.27,141.25,7.1271445]
[1745216405566,24.6,141.27,141.25,0.0470445]
[1745216406064,31.6796,141.27,141.25,0.0470445]
[1745216406270,52.68,141.27,141.25,0.0470445]
[1745216407467,59.7593,141.27,141.25,0.0470445]
[1745216407971,49.1593,141.27,141.25,0.0470445]
[1745216408677,49.1593,141.27,141.25,7.1271445]
[1745216408678,42.08,141.27,141.25,7.1271445]
[1745216409473,42.08,141.27,141.25,0.0470445]
[1745216409973,42.08,141.27,141.25,7.1270445]
[1745216410169,42.08,141.27,141.25,0.0470445]
[1745216410669,7.0797,141.26,141.25,0.0470445]
[1745216411174,51.0402,141.27,141.19,28.08]
[1745216411373,43.9607,141.27,141.2,9.45600488]
[1745216411675,28.08,141.27,141.24,7.0805]
[1745216412173,28.12937404,141.27,141.24,7.12746642]
[1745216414074,28.12937404,141.27,141.25,7.0801]
[1745216415075,28.12937404,141.27,141.24,7.12736642]
[1745216415368,28.12937404,141.27,141.24,0.04696642]
[1745216415570,0.04937404,141.27,141.26,7.0797]
[1745216417075,0.04937404,141.27,141.25,7.0799]
[1745216417575,0.04937404,141.27,141.24,0.04696642]
[1745216418475,7.12887404,141.27,141.24,0.04696642]
[1745216419175,7.12887404,141.27,141.24,7.12726642]
[1745216423080,7.0801,141.26,141.24,0.04696642]
[1745216423277,0.04937404,141.27,141.24,0.04696642]
[1745216423477,28.08,141.26,141.24,0.04696642]
[1745216423879,7.0802,141.25,141.24,0.04696642]
[1745216426778,7.082,141.22,141.17,28.08]
[1745216426980,11.37020488,141.25,141.19,7.0829]
[1745216427881,0.04537367,141.23,141.21,0.04696369]
[1745216428383,7.0818,141.22,141.21,0.04696369]
[1745216429787,7.12667367,141.23,141.21,0.04696369]
[1745216430083,0.04537367,141.23,141.21,0.04696369]
[1745216431283,0.04537367,141.23,141.22,7.0817]
[1745216432385,28.08,141.26,141.25,7.0802]
[1745216432680,30.0471,141.29,141.25,7.0802]
[1745216432885,37.1256,141.29,141.25,7.0802]
[1745216433184,30.0471,141.29,141.24,7.0805]
[1745216433587,7.13109737,141.28,141.25,0.05255659]
[1745216433789,7.13109737,141.28,141.25,7.13265659]
[1745216434883,0.05209737,141.28,141.26,7.0795]
[1745216437689,7.13089737,141.28,141.25,7.13255659]
[1745216439683,30.73600488,141.27,141.12,33.24244325]
[1745216439886,9.45600488,141.23,141.12,42.69844813]
[1745216440088,7.0823,141.21,141.12,17.76661569]
[1745216440288,7.0823,141.21,141.16,7.0844]
[1745216441088,0.04854051,141.2,141.17,0.05162467]
[1745216442486,7.13144051,141.2,141.17,0.05162467]
[1745216442690,0.04854051,141.2,141.17,0.05162467]
[1745216443190,7.0833,141.19,141.17,0.05162467]
[1745216443590,0.04854051,141.2,141.17,0.05162467]
[1745216444085,0.04854051,141.2,141.17,7.13572467]
[1745216445292,7.13124051,141.2,141.17,7.13572467]
[1745216446391,7.13124051,141.2,141.17,0.05162467]
[1745216447092,7.0834,141.19,141.17,0.05162467]
[1745216447295,0.04854051,141.2,141.17,0.05162467]
[1745216448297,7.13154051,141.2,141.17,0.05162467]
[1745216448496,0.04854051,141.2,141.17,0.05162467]
[1745216448794,7.13144051,141.2,141.17,0.05162467]
[1745216451298,0.04854051,141.2,141.17,7.13582467]
[1745216452296,7.13134051,141.2,141.17,7.13582467]
[1745216453700,0.04854051,141.2,141.17,7.13582467]
[1745216457800,7.13124051,141.2,141.17,7.13582467]
[1745216458303,0.04854051,141.2,141.17,0.05162467]
[1745216458501,0.04854051,141.2,141.17,6.12304886]
[1745216458702,0.04854051,141.2,141.19,6.07142419]
[1745216458902,6.07142419,141.24,141.19,6.07142419]
[1745216459502,6.07142419,141.24,141.22,7.0816]
[1745216459999,6.12044141,141.24,141.23,7.0812]
[1745216460205,0.04901722,141.24,141.23,7.0812]
[1745216462999,28.06,141.28,141.26,7.0794]
[1745216463200,28.06,141.28,141.21,9.4790424]
[1745216463803,28.06,141.28,141.24,7.0803]
[1745216464003,35.139,141.28,141.24,7.0803]
[1745216464302,0.05033999,141.27,141.25,0.05402214]
[1745216465905,7.12953999,141.27,141.25,0.05402214]
[1745216467006,0.05033999,141.27,141.25,0.05402214]
[1745216467507,0.05033999,141.27,141.25,7.13412214]
[1745216468206,0.05033999,141.27,141.26,7.0797]
[1745216476609,9.52938239,141.27,141.17,6.0054]
[1745216476809,9.4790424,141.27,141.17,6.0054]
[1745216477110,7.08,141.26,141.21,7.0818]
[1745216477716,0.05413494,141.25,141.22,0.051569]
[1745216478013,7.13433494,141.25,141.22,0.051569]
[1745216478716,0.05413494,141.25,141.22,0.051569]
[1745216478913,28.04,141.24,141.22,0.051569]
[1745216479509,7.0812,141.23,141.22,0.051569]
[1745216480517,35.1208,141.24,141.22,0.051569]
[1745216480816,28.04,141.24,141.22,0.051569]
[1745216482222,35.1207,141.24,141.22,0.051569]
[1745216483322,41.18951191,141.24,141.22,0.051569]
[1745216487121,34.10881191,141.24,141.22,0.051569]
[1745216487324,28.04,141.24,141.22,0.051569]
[1745216489826,28.04,141.24,141.22,7.133169]
[1745216490525,0.05413494,141.25,141.24,7.0807]
[1745216491030,0.05413494,141.25,141.22,0.051569]
[1745216491222,0.05413494,141.25,141.23,7.081]
[1745216491422,6.06881191,141.24,141.22,0.051569]
[1745216493231,7.0812,141.23,141.22,0.051569]
[1745216494834,7.0809,141.24,141.22,0.051569]
[1745216495035,6.06881191,141.23,141.22,0.051569]
[1745216495432,13.14971191,141.24,141.22,0.051569]
[1745216495634,0.05413494,141.25,141.22,0.051569]
[1745216497432,0.05413494,141.25,141.23,7.0809]
[1745216498134,0.05413494,141.25,141.24,7.0807]
[1745216499738,0.05413494,141.25,141.22,0.051569]
[1745216499934,6.06881191,141.24,141.22,0.051569]
[1745216500335,28.04,141.23,141.22,0.051569]
[1745216500532,28.04,141.23,141.18,7.0835]
[1745216500727,6.06881191,141.21,141.18,7.0835]
[1745216501335,6.06881191,141.19,141.14,6.06881191]
[1745216501735,0.0529083,141.18,141.15,0.04671168]
[1745216502036,0.0529083,141.18,141.16,7.0843]
[1745216504330,0.0529083,141.18,141.15,0.04671168]
[1745216504535,0.0529083,141.18,141.17,7.0842]
[1745216504937,0.0529083,141.18,141.15,0.04671168]
[1745216505237,0.0529083,141.18,141.16,7.0843]
[1745216506239,0.0529083,141.18,141.17,7.0842]
[1745216506540,0.0529083,141.18,141.15,0.04671168]
[1745216506839,0.0529083,141.18,141.16,7.0845]
[1745216508039,0.0529083,141.18,141.17,7.0842]
[1745216508940,0.0529083,141.18,141.16,7.0845]
[1745216511538,0.0529083,141.18,141.15,7.13171168]
[1745216511842,6.06881191,141.17,141.15,0.04671168]
[1745216513242,13.15331191,141.17,141.15,0.04671168]
[1745216513543,6.06881191,141.17,141.15,0.04671168]
[1745216514145,13.15351191,141.17,141.15,0.04671168]
[1745216515646,13.20552021,141.18,141.15,0.04671168]
[1745216515947,0.0529083,141.18,141.15,0.04671168]
[1745216516542,0.0529083,141.18,141.15,7.13161168]
[1745216517546,7.1366083,141.18,141.15,7.13161168]
[1745216519750,0.0529083,141.18,141.16,7.0846]
[1745216522451,0.0529083,141.18,141.17,7.0842]
[1745216526249,0.0529083,141.18,141.16,7.0845]
[1745216526749,0.0529083,141.18,141.15,6.11552359]
[1745216526949,0.0529083,141.18,141.16,7.0847]
[1745216528152,0.0529083,141.18,141.17,7.0842]
[1745216529248,0.0529083,141.18,141.15,6.11552359]
[1745216529249,0.0529083,141.18,141.16,7.0845]
[1745216530359,0.0529083,141.18,141.15,7.13161168]
[1745216531457,7.1370083,141.18,141.15,0.04671168]
[1745216531658,6.06881191,141.17,141.15,0.04671168]
[1745216532556,6.06881191,141.17,141.15,7.13191168]
[1745216534455,28.0729083,141.18,141.15,7.13191168]
[1745216534661,0.0529083,141.18,141.15,6.11552359]
[1745216535162,0.0529083,141.18,141.17,7.0842]
[1745216545676,0.0529083,141.18,141.16,7.0845]
[1745216546380,0.0529083,141.18,141.17,7.0842]
[1745216547982,0.0529083,141.18,141.15,0.04671168]
[1745216548480,7.1368083,141.18,141.15,0.04671168]
[1745216548882,7.1368083,141.18,141.15,7.13171168]
[1745216549687,0.0529083,141.18,141.15,7.13171168]
[1745216549985,0.0529083,141.18,141.15,0.04671168]
[1745216550787,9.2029083,141.18,141.15,0.04671168]
[1745216552088,9.2029083,141.18,141.16,7.0847]
[1745216552488,9.2029083,141.18,141.15,6.11552359]
[1745216552988,9.2029083,141.18,141.16,7.0847]
[1745216555790,9.2029083,141.18,141.17,7.0842]
[1745216561193,9.2029083,141.18,141.16,7.0843]
[1745216561894,9.2029083,141.18,141.17,7.0842]
[1745216564597,9.2029083,141.18,141.16,7.0844]
[1745216565094,9.2029083,141.18,141.17,7.0842]
[1745216566797,9.2029083,141.18,141.15,0.04671168]
[1745216566997,9.2029083,141.18,141.17,6.06881191]
[1745216567692,9.2029083,141.18,141.15,0.04671168]
[1745216567892,9.2029083,141.18,141.17,6.06881191]
[1745216568293,9.2029083,141.18,141.17,13.15301191]
[1745216569495,40.7205,141.24,141.2,7.0822]
[1745216569694,33.6395,141.24,141.19,6.06881191]
[1745216570196,33.6395,141.24,141.21,7.0819]